Workbook

Sheet Instructions
B1: The Level III model uses different input properties depending on whether they are Type 1, Type 2, or Type 3 chemicals (as defined in Mackay et al. 1996). In this version of the model, the chemical 'Type' is selected based on certain chemical properties, rather than by user selection. Selection rules are as follows:
B3: Type 1 chemicals: Substances partition into air, water and octanol. These chemicals have measurable vapour pressures and solubilities. If a vapour pressure value is entered the chemical will be treated as Type 1.
C4: If the vapour pressure is not meaurable or negligible, enter a dash in vapour pressure cell, then continue to fill out the rest of the properties
B5: Type 2 chemicals: The substance does not appreciably partition into air. If a dash is entered into vapour pressure then additional partition ratio inputs will appear for media/water systems
B6: Type 3 chemicals: The substance does not appreciably partition into water. If a dash is entered in the vapour pressure input and the soil/water partition ratio value is 1000 or larger, then the required inputs will be media/air
C7: If the inputted soil/water partition ratio > 1000, ALL partition ratio inputs will change to media/air from media/water. Some values may need to be re-inputted as media/air instead of media/water
B8: Notes: | C8: After the Inputs for your chemical is filled out in the Inputs sheet, it is recommended to add the chemical to the database by clicking the radial button 'Add to DB' to easily-re-enter the correct input data in the future There are sample Type 1, 2, and 3 chemicals in the database
B9: Continue filling out environment inputs, emission and inflow amounts. Results are located in the 'Results' sheet and summarized in the 'Diagram' and 'Charts' sheets
B11: Property estimation guidelines (all equations from Mackay & Parnis 2021):
B12: - Henry's law constant (H) an be estimated as: Vapor Pressure * Molar Mass / Solubility
B13: - Reaction half-life estimated values can be obtained from EAS-E Suite (www.eas-e-suite.com), or EPI Suite for water & air half-lives only (https://www.epa.gov/tsca-screening-tools/epi-suitetm-estimation-program-interface)
B14: - Koc can be estimated as Kow * 0.35 (Seth method) or as Kow * 0.41 (Karickhoff method)
B15: - Kaw can be calculated as H/RT, where R = Gas constant and T = temperature
B16: - Partition ratios can be calculated as the ratio of Z-values, e.g., Kaw = Za/Zw
C17: > Za = 1/RT = 4x10^-4
C18: > Zw = Za/Kaw
C19: > Zo = Zw*Kow
C20: > Z_solid = Zo * OC fraction; where any solid phase can be represented including sediment, suspended sediment, soil, etc. OC fraction default values can be found in the Environment properties sheet
C21: > Z_biota = Zo * Lipid content; where any biota can be represented, including fish. Default lipid content values can be found in the Environment properties sheet
B24: References: | C24: Mackay et al. 1996. Assessing the fate of new and existing chemicals: a five-stage process. Environ. Toxicol Chem. 15(9), 1618-1626
C25: Mackay & Parnis, 2021. Multimedia Environmental Models: The Fugacity Approach. 3rd ed. CRC Press, Taylor & Francis Group. Boca Raton, FL.

Sheet Inputs - Chemical Properties
C3: CHEMICAL PROPERTIES | D3: Please complete all required fields below
D4: or
D5: Select a chemical from the database:
C6: * indicates required input
C7: Note: insert dash (-) if property is not inputted | F7: References and Notes
B9: * | C9: Chemical Name
C10: CAS
B12: * | C12: Molar Mass (g/mol)
B13: * | C13: Data Temperature (°C)
C14: Melting Point (°C)
C15: Vapor Pressure (Pa)
B16: =IF(Pressure="-","","*") -> * | C16: Henry's Law Constant (Pa·m³/mol)
C18: Reaction Half-Lives (hours)
B19: * | C19: In Air (gaseous)
B20: * | C20: In Aerosol
B21: * | C21: In Water (no susp. particles)
B22: * | C22: In Suspended Particles
B23: * | C23: In Fish
B24: * | C24: In Soil
B25: * | C25: In Sediment
C27: Partition Ratios
C29: logKOW
B30: =IF(Pressure="-","","*") -> * | C30: KOC
B31: =IF(Pressure="-","*","") ->  | C31: =IF(AND(ISNUMBER(SEARCH("N/A",Fug_Ratio)),KQW<1000),"Air-Water",IF(ISNUMBER(SEARCH("N/A",Fug_Ratio)),"Water-Air","-")) -> -
C32: =IF(AND(ISNUMBER(SEARCH("N/A",Fug_Ratio)),KQW<1000),"Aerosol-Water",IF(ISNUMBER(SEARCH("N/A",Fug_Ratio)),"Aerosol-Air","-")) -> -
C33: =IF(AND(ISNUMBER(SEARCH("N/A",Fug_Ratio)),KQW<1000),"Soil-Water (L/kg)",IF(ISNUMBER(SEARCH("N/A",Fug_Ratio)),"Soilr-Air","-")) -> -
C34: =IF(AND(ISNUMBER(SEARCH("N/A",Fug_Ratio)),KQW<1000),"Suspended Particles-Water (L/kg)",IF(ISNUMBER(SEARCH("N/A",Fug_Ratio)),"Suspended Particles-Air","-")) -> -
C35: =IF(AND(ISNUMBER(SEARCH("N/A",Fug_Ratio)),KQW<1000),"Sediment-Water (L/kg)",IF(ISNUMBER(SEARCH("N/A",Fug_Ratio)),"Sediment-Air","-")) -> -
C36: =IF(AND(ISNUMBER(SEARCH("N/A",Fug_Ratio)),KQW<1000),"Fish-Water (L/kg)",IF(ISNUMBER(SEARCH("N/A",Fug_Ratio)),"Fish-Air","-")) -> -

Sheet Inputs - Environment
C3: ENVIRONMENTAL PROPERTIES
C5: Complete all fields or select environment from database:
C7: Environment Name | D7: Hypothene
C9: Volume Fractions | F9: Advective Flow Residence Times (h)
C10: Aerosol in Air | D10: 0 | F10: Air | G10: 600
C11: Susp. Particles in Water | D11: 0 | F11: Water | G11: 7000
C12: Fish in Water | D12: 0 | F12: Sediment (burial) | G12: 100000000000
C13: Air in Soil | D13: 0
C14: Water in Soil | D14: 0.377 | F14: Organic Carbon (g/g)
C15: Solids in Soil | D15: 0.623 | F15: Susp. Particles | G15: 0.02
C16: Water in Sediment | D16: 0.377 | F16: Fish Lipid | G16: 0.05
C17: Solids in Sediment | D17: 0.623 | F17: Soil | G17: 0.02
F18: Sediment | G18: 0.04
C19: Area (m2)
C20: Air | D20: 3000000 | F20: Transport velocities (m/h)
C21: Water | D21: 350000 | F21: Air-side air-water MTC | G21: 5
C22: Soil | D22: 450000 | F22: Water-side air-water MTC | G22: 0.05
C23: Sediment | D23: 350000 | F23: Rain rate | G23: 0
F24: Aerosol dry deposition | G24: 0
C25: Depth (m) | F25: Soil-air phase diffusion MTC | G25: 1
C26: Air | D26: 2000 | F26: Soil-water phase diffusion MTC | G26: 1e-05
C27: Water | D27: 20 | F27: Soil-air boundary layer MTC | G27: 5
C28: Soil | D28: 0.1 | F28: Water-side sed.-water diffusion MTC | G28: 0.0001
C29: Sediment | D29: 0.06 | F29: Sediment deposition | G29: 0
F30: Sediment resuspension | G30: 0
C31: Densities for subcompartments (kg/m³) | F31: Soil-water runoff rate | G31: 0
C32: Air in Air | D32: 1.175556 | F32: Soil-solids runoff rate | G32: 0
C33: Aerosol in Air | D33: 2400
C34: Water in Water | D34: 1000 | F34: Scavenging ratio (unitless) | G34: 200000
C35: Sup. Particles in Water | D35: 1000
C36: Fish in Water | D36: 1000
C37: Air in Soil | D37: 1.175556
C38: Water in Soil | D38: 1000
C39: Solid in Soil | D39: 2400
C40: Water in Sediment | D40: 1000
C41: Solid in Sediment | D41: 2400

Sheet Emissions and Inflows
C3: Emission Rate
C5: Into Air | D5: 10 | E5: kg/h
C6: Into Water | D6: 12 | E6: kg/h
C7: Into Soil | D7: 14 | E7: kg/h
C8: Into Sediment | D8: 4 | E8: kg/h
C10: Advective Inflow Concentrations
C12: Concentration in Air | D12: 200000 | E12: ng/m³
C13: Concentration in Water | D13: 2000000 | E13: ng/L
C15: Additional Comments

Sheet Results
C3: Level III Results
C5: Chemical Name | D5: =ChemName -> 0
C6: Environment Name | D6: =EnvName -> Hypothene
C9: Mass Balance
D11: Emission Rate
D12: kg/h | E12: mol/h
C13: Air | D13: =Emis_kgph -> 10 | E13: =D13*1000/MolarMass -> 
C14: Water | D14: ='Emissions and Inflows'!D6 -> 12 | E14: =D14*1000/MolarMass -> 
C15: Soil | D15: ='Emissions and Inflows'!D7 -> 14 | E15: =D15*1000/MolarMass -> 
C16: Sediment | D16: ='Emissions and Inflows'!D8 -> 4 | E16: =D16*1000/MolarMass -> 
D17: Total: | E17: =SUM(E13:E16) -> 
C18: Sediment
D19: Inflow Rate | F19: Concentration
D20: kg/h | E20: mol/h | F20: ng/m³ | G20: ng/L | H20: kg/m³ | I20: mol/m³
C21: Air | D21: =E21*MolarMass/1000 ->  | E21: =F74*I21 ->  | F21: =ConcWatNgpL -> 200000 | G21: - | H21: =F21*0.000000000001 -> 2e-07 | I21: =F21*0.000000001/MolarMass -> 
C22: Water | D22: =E22*MolarMass/1000 ->  | E22: =F78*I22 ->  | F22: - | G22: =ConcAirNgpm3 -> 2000000 | H22: =G22*0.000000001 -> 0.002 | I22: =G22*0.000001/MolarMass -> 
D23: Total: | E23: =SUM(E21:E22) -> 
C24: Total | D24: =SUM(D13:D16)+SUM(D21:D22) ->  | E24: =E17+E23 -> 
D26: kg | E26: mol
C27: Total Amount of Chemical in System | D27: =SUM(I51,I55,I60,I65) ->  | E27: =SUM(H51,H55,H60,H65) -> 
D29: Loss rate | F29: D Value | G29: Res. Time
D30: kg/h | E30: mol/h | F30: m³/h | G30: hours | H30: days
C31: Advection | D31: =H87 ->  | E31: =I87 ->  | F31: =SUM(G73:G81) ->  | G31: =E$27/(E31+0.00000000001) ->  | H31: =G31/24 -> 
C32: Reaction | D32: =H107 ->  | E32: =I107 ->  | F32: =SUM(G94:G105) ->  | G32: =E$27/(E32+0.00000000001) ->  | H32: =G32/24 -> 
C33: Overall | D33: =SUM(D31:D32) ->  | E33: =SUM(E31:E32) ->  | F33: =SUM(F31:F32) ->  | G33: =E$27/(E33+0.00000000001) ->  | H33: =G33/24 -> 
C35: Fugacity
D37: Fugacity | E37: VZ
D38: Pa | E38: mol/Pa
C39: Air | D39: =((E13+E21)/(G74+G94+G113+G114)+E15*G117/(G103+G117+G118)/(G74+G94+G113+G114)+D40*(G115/(G74+G94+G113+G114)))/(1-G117*G114/(G74+G94+G113+G114)/(G103+G117+G118)) ->  | E39: =Area_Air*Depth_Air*D51 -> 
C40: Water | D40: =IF(Area_water=0,0,(E14+E22+((E13+E21)/(G74+G94+G113+G114)+E15*G117/(G103+G117+G118)/(G74+G94+G113+G114))*(G113+G118*G114/(G103+G117+G118))/(1-G117*G114/(G74+G94+G113+G114)/(G103+G117+G118))+E15*G118/(G103+G117+G118)+E16*G119/(G85+G105+G119))/((G78+G98+G115+G116+0)-(((G115/(G74+G94+G113+G114))*(G113+G118*G114/(G103+G117+G118)))/(1-G117*G114/(G74+G94+G113+G114)/(G103+G117+G118)))-((G116*G119)/(G85+G105+G119)))) ->  | E40: =Area_water*'Inputs - Environment'!D27*D55 -> 
C41: Soil | D41: =(E15+D39*G114)/(G103+G117+G118) ->  | E41: ='Inputs - Environment'!D22*'Inputs - Environment'!D28*D60 -> 
C42: Sediment | D42: =IF(Area_water=0,0,(E16+D40*G116)/(G85+G105+G119)) ->  | E42: ='Inputs - Environment'!D23*'Inputs - Environment'!D29*D65 -> 
D43: Total: | E43: =SUM(E39:E42) -> 
C44: Fugacity Ratio | D44: =IF(Pressure="-","N/A",IF(MeltPt>DataTemp,EXP(6.79*(1-(MeltPt+273.15)/(DataTemp+273.15))),1)) -> 1
C46: Phase Properties
D48: Z Value | E48: Concentration | H48: Quantity
D49: mol/m³*Pa | E49: mol/m³ | F49: g/m³ | G49: µg/g | H49: mol | I49: kg | J49: %
C50: Air
C51: Bulk | D51: =((1-Aers_Fraction)*Results!D52+Aers_Fraction*Results!D53) ->  | E51: =D$39*D51 ->  | F51: =E51*MolarMass ->  | G51: =F51*1000/Dens_Air ->  | H51: =E51*Area_Air*Depth_Air ->  | I51: =H51*MolarMass/1000 ->  | J51: =100*H51/SUM(H51,H55,H60,H65) -> 
C52: Air Vapour | D52: =IF(AND(ISNUMBER(SEARCH("-",Pressure)),KQW<1000),D56*KAW,IF(ISNUMBER(SEARCH("-",Pressure)),(1/8.3144598/(DataTemp+273.15)),(1/8.3144598/(DataTemp+273.15)))) -> 0.0004403162944 | E52: =D$39*D52 ->  | F52: =E52*MolarMass ->  | G52: =F52*1000/Dens_Air ->  | H52: =E52*Area_Air*Depth_Air*(1-Aers_Fraction) ->  | I52: =(MolarMass*H52)/1000 ->  | J52: =100*H52/SUM(H51,H55,H60,H65) -> 
C53: Aerosol | D53: =IF(AND(ISNUMBER(SEARCH("-",Pressure)),KQW<1000),D56*'Inputs - Chemical Properties'!D32,IF(ISNUMBER(SEARCH("-",Pressure)),D52*'Inputs - Chemical Properties'!D32,((D52*6000000)/Pressure))) ->  | E53: =D$39*D53 ->  | F53: =E53*MolarMass ->  | G53: =F53*1000/Dens_Aers ->  | H53: =E53*Area_Air*Depth_Air*Aers_Fraction ->  | I53: =(MolarMass*H53)/1000 ->  | J53: =100*H53/SUM(H51,H55,H60,H65) -> 
C54: Water
C55: Bulk | D55: =((1-Vol_Wat-Fish_Fraction)*Results!D56+Vol_Wat*Results!D57+Fish_Fraction*Results!D58) ->  | E55: =D$40*D55 ->  | F55: =E55*MolarMass ->  | G55: =F55*1000/Dens_Wat ->  | H55: =E55*Area_water*'Inputs - Environment'!D27 ->  | I55: =(MolarMass*H55)/1000 ->  | J55: =100*H55/SUM(H51,H55,H60,H65) -> 
C56: Water | D56: =IF(AND(ISNUMBER(SEARCH("-",Pressure)),KQW<1000),1,IF(ISNUMBER(SEARCH("-",Pressure)),(D52*KAW),(1/Henry_Const))) ->  | E56: =D$40*D56 ->  | F56: =E56*MolarMass ->  | G56: =F56*1000 ->  | H56: =E56*Area_water*'Inputs - Environment'!D27*(1-Vol_Wat-Fish_Fraction) ->  | I56: =(MolarMass*H56)/1000 ->  | J56: =100*H56/SUM(H51,H55,H60,H65) -> 
C57: Susp. Particles | D57: =IF(AND(ISNUMBER(SEARCH("-",Pressure)),KQW<1000),D56*(KSus*Dens_SuspPart/1000),IF(ISNUMBER(SEARCH("-",Pressure)),D52*KSus,(D56*Dens_SuspPart*'Inputs - Environment'!G15*KOC/1000))) ->  | E57: =D$40*D57 ->  | F57: =E57*MolarMass ->  | G57: =F57*1000/Dens_SuspPart ->  | H57: =E57*Area_water*'Inputs - Environment'!D27*Vol_Wat ->  | I57: =(MolarMass*H57)/1000 ->  | J57: =100*H57/SUM(H51,H55,H60,H65) -> 
C58: Fish | D58: =IF(AND(ISNUMBER(SEARCH("-",Pressure)),KQW<1000),D56*KFish*Dens_Fish/1000,IF(ISNUMBER(SEARCH("-",Pressure)),(D52*KFish),D56*'Inputs - Environment'!G16*10^logKow)) ->  | E58: =D$40*D58 ->  | F58: =E58*MolarMass ->  | G58: =F58*1000/Dens_Fish ->  | H58: =E58*Area_water*'Inputs - Environment'!D27*Fish_Fraction ->  | I58: =(MolarMass*H58)/1000 ->  | J58: =100*H58/SUM(H51,H55,H60,H65) -> 
C59: Soil
C60: Bulk | D60: =('Inputs - Environment'!D15*Results!D63+'Inputs - Environment'!D13*Results!D61+'Inputs - Environment'!D14*Results!D56) ->  | E60: =D$41*D60 ->  | F60: =E60*MolarMass ->  | G60: =F60*1000/('Inputs - Environment'!D13*Dens_Soil+'Inputs - Environment'!D14*Dens_Sed+'Inputs - Environment'!D15*'Inputs - Environment'!D39) ->  | H60: =E60*'Inputs - Environment'!D22*'Inputs - Environment'!D28 ->  | I60: =(MolarMass*H60)/1000 ->  | J60: =100*H60/SUM(H51,H55,H60,H65) -> 
C61: Air | D61: =IF(AND(ISNUMBER(SEARCH("-",Pressure)),KQW<1000),D52,IF(ISNUMBER(SEARCH("-",Pressure)),D52,D52)) -> 0.0004403162944 | E61: =D$41*D61 ->  | F61: =E61*MolarMass ->  | G61: =F61*1000/Dens_Soil ->  | H61: =E61*'Inputs - Environment'!D22*'Inputs - Environment'!D28*'Inputs - Environment'!D13 ->  | I61: =(MolarMass*H61)/1000 ->  | J61: =100*H61/SUM(H51,H55,H60,H65) -> 
C62: Water | D62: =IF(AND(ISNUMBER(SEARCH("-",Pressure)),KQW<1000),D56,IF(ISNUMBER(SEARCH("-",Pressure)),D56,D56)) ->  | E62: =D$41*D62 ->  | F62: =E62*MolarMass ->  | G62: =F62*1000/Dens_Sed ->  | H62: =E62*'Inputs - Environment'!D22*'Inputs - Environment'!D28*'Inputs - Environment'!D14 ->  | I62: =(MolarMass*H62)/1000 ->  | J62: =100*H62/SUM(H51,H55,H60,H65) -> 
C63: Solids | D63: =IF(AND(ISNUMBER(SEARCH("-",Pressure)),KQW<1000),D56*KQW*'Inputs - Environment'!D39/1000,IF(ISNUMBER(SEARCH("-",Pressure)),D52*KQW,(D56*'Inputs - Environment'!D39*'Inputs - Environment'!G17*KOC/1000))) ->  | E63: =D$41*D63 ->  | F63: =E63*MolarMass ->  | G63: =F63*1000/'Inputs - Environment'!D39 ->  | H63: =E63*'Inputs - Environment'!D22*'Inputs - Environment'!D28*'Inputs - Environment'!D15 ->  | I63: =(MolarMass*H63)/1000 ->  | J63: =100*H63/SUM(H51,H55,H60,H65) -> 
C64: Sediment
C65: Bulk | D65: ='Inputs - Environment'!D17*Results!D67+'Inputs - Environment'!D16*Results!D66 ->  | E65: =D$42*D65 ->  | F65: =E65*MolarMass ->  | G65: =F65*1000/('Inputs - Environment'!D16*'Inputs - Environment'!D40+'Inputs - Environment'!D17*'Inputs - Environment'!D41) ->  | H65: =E65*'Inputs - Environment'!D23*'Inputs - Environment'!D29 ->  | I65: =(MolarMass*H65)/1000 ->  | J65: =100*H65/SUM(H51,H55,H60,H65) -> 
C66: Water | D66: =IF(AND(ISNUMBER(SEARCH("-",Pressure)),KQW<1000),D56,IF(ISNUMBER(SEARCH("-",Pressure)),D56,D56)) ->  | E66: =D$42*D66 ->  | F66: =E66*MolarMass ->  | G66: =F66*1000/'Inputs - Environment'!D40 ->  | H66: =E66*'Inputs - Environment'!D23*'Inputs - Environment'!D29*'Inputs - Environment'!D16 ->  | I66: =(MolarMass*H66)/1000 ->  | J66: =100*H66/SUM(H51,H55,H60,H65) -> 
C67: Solids | D67: =IF(AND(ISNUMBER(SEARCH("-",Pressure)),KQW<1000),D56*K_Sed*'Inputs - Environment'!D41/1000,IF(ISNUMBER(SEARCH("-",Pressure)),D52*K_Sed,(D56*'Inputs - Environment'!D41*'Inputs - Environment'!G18*KOC/1000))) ->  | E67: =D$42*D67 ->  | F67: =E67*MolarMass ->  | G67: =F67*1000/'Inputs - Environment'!D41 ->  | H67: =E67*'Inputs - Environment'!D23*'Inputs - Environment'!D29*'Inputs - Environment'!D17 ->  | I67: =(MolarMass*H67)/1000 ->  | J67: =100*H67/SUM(H51,H55,H60,H65) -> 
C69: Advection
D71: Res. Time | F71: Flow Rate | G71: D Value | H71: Removal Rate | J71: % of Total
D72: hours | E72: days | F72: m³/h | G72: mol/Pa*h | H72: kg/h | I72: mol/h | J72: Losses
C73: Air
C74: Bulk | D74: =AdvFlowAirH -> 600 | E74: =D74/24 -> 25 | F74: =Area_Air*Depth_Air/D74 -> 10000000 | G74: =G75+G76 ->  | H74: =I74*MolarMass/1000 ->  | I74: =D39*G74 ->  | J74: =100*I74/E$33 -> 
C75: Air Vapour | D75: - | E75: - | F75: =Area_Air*Depth_Air*(1-Aers_Fraction)/Results!D74 -> 10000000 | G75: =F75*D52 -> 4403.162944 | H75: =I75*MolarMass/1000 ->  | I75: =D39*G75 ->  | J75: =100*I75/E$33 -> 
C76: Aerosol | D76: - | E76: - | F76: =Area_Air*Depth_Air*Aers_Fraction/D74 -> 0 | G76: =F76*D53 ->  | H76: =I76*MolarMass/1000 ->  | I76: =D39*G76 ->  | J76: =100*I76/E$33 -> 
C77: Water
C78: Bulk | D78: =AdvFlowWatH -> 7000 | E78: =D78/24 -> 291.6666667 | F78: =Area_water*'Inputs - Environment'!D27/D78 -> 1000 | G78: =SUM(G79:G81) ->  | H78: =I78*MolarMass/1000 ->  | I78: =D40*G78 ->  | J78: =100*I78/E$33 -> 
C79: Water | D79: - | E79: - | F79: =Area_water*'Inputs - Environment'!D27*(1-Vol_Wat-Fish_Fraction)/Results!D78 -> 1000 | G79: =F79*D56 ->  | H79: =I79*MolarMass/1000 ->  | I79: =D40*G79 ->  | J79: =100*I79/E$33 -> 
C80: Susp. Particles | D80: - | E80: - | F80: =Area_water*'Inputs - Environment'!D27*Vol_Wat/Results!D78 -> 0 | G80: =F80*D57 ->  | H80: =I80*MolarMass/1000 ->  | I80: =D40*G80 ->  | J80: =100*I80/E$33 -> 
C81: Fish | D81: - | E81: - | F81: =Area_water*'Inputs - Environment'!D27*Fish_Fraction/Results!D78 -> 0 | G81: =F81*D58 ->  | H81: =I81*MolarMass/1000 ->  | I81: =D40*G81 ->  | J81: =100*I81/E$33 -> 
C82: Soil
C83: Bulk | D83: 100000000000 | E83: =D83/24 -> 4166666667 | F83: - | G83: - | H83: - | I83: - | J83: -
C84: Sediment
C85: Bulk | D85: =AdvFlowSedH -> 100000000000 | E85: =D85/24 -> 4166666667 | F85: ='Inputs - Environment'!D23*'Inputs - Environment'!D29/D85 -> 2.1e-07 | G85: =F85*D65 ->  | H85: =I85*MolarMass/1000 ->  | I85: =D42*G85 ->  | J85: =100*I85/E$33 -> 
C87: Total | G87: =G74+G78+G85 ->  | H87: =SUM(H74,H78,H85) ->  | I87: =SUM(I74,I78,I85) ->  | J87: =SUM(J74,J78,J85) -> 
C89: Reaction
D91: Half-Life | F91: Rate Constant | G91: D Value | H91: Removal Rate | J91: % of Total
D92: hours | E92: days | F92: 1/h | G92: mol/Pa*h | H92: kg/h | I92: mol/h | J92: Losses
C93: Air
C94: Bulk | D94: - | E94: - | F94: - | G94: =SUM(G95:G96) ->  | H94: =I94*MolarMass/1000 ->  | I94: =D$39*G94 ->  | J94: =100*I94/E$33 -> 
C95: Air Vapour | D95: =HL_Air -> 0 | E95: =D95/24 -> 0 | F95: =0.693/D95 ->  | G95: =D52*Area_Air*Depth_Air*(1-Aers_Fraction)*F95 ->  | H95: =I95*MolarMass/1000 ->  | I95: =D$39*G95 ->  | J95: =100*I95/E$33 -> 
C96: Aerosol | D96: ='Inputs - Chemical Properties'!D20 -> 0 | E96: =D96/24 -> 0 | F96: =0.693/D96 ->  | G96: =D53*F96*Area_Air*Depth_Air*Aers_Fraction ->  | H96: =I96*MolarMass/1000 ->  | I96: =D$39*G96 ->  | J96: =100*I96/E$33 -> 
C97: Water
C98: Bulk | D98: - | E98: - | F98: - | G98: =SUM(G99:G101) ->  | H98: =I98*MolarMass/1000 ->  | I98: =D$40*G98 ->  | J98: =100*I98/E$33 -> 
C99: Water | D99: ='Inputs - Chemical Properties'!D21 -> 0 | E99: =D99/24 -> 0 | F99: =0.693/D99 ->  | G99: =D56*Area_water*'Inputs - Environment'!D27*(1-Vol_Wat-Fish_Fraction)*F99 ->  | H99: =I99*MolarMass/1000 ->  | I99: =D$40*G99 ->  | J99: =100*I99/E$33 -> 
C100: Susp. Particles | D100: ='Inputs - Chemical Properties'!D22 -> 0 | E100: =D100/24 -> 0 | F100: =0.693/D100 ->  | G100: =D57*Area_water*'Inputs - Environment'!D27*Vol_Wat*F100 ->  | H100: =I100*MolarMass/1000 ->  | I100: =D$40*G100 ->  | J100: =100*I100/E$33 -> 
C101: Fish | D101: ='Inputs - Chemical Properties'!D23 -> 0 | E101: =D101/24 -> 0 | F101: =0.693/D101 ->  | G101: =D58*Area_water*'Inputs - Environment'!D27*Fish_Fraction*Results!F101 ->  | H101: =I101*MolarMass/1000 ->  | I101: =D$40*G101 ->  | J101: =100*I101/E$33 -> 
C102: Soil
C103: Bulk | D103: ='Inputs - Chemical Properties'!D24 -> 0 | E103: =D103/24 -> 0 | F103: =0.693/D103 ->  | G103: =D60*'Inputs - Environment'!D22*'Inputs - Environment'!D28*Results!F103 ->  | H103: =I103*MolarMass/1000 ->  | I103: =D41*G103 ->  | J103: =100*I103/E$33 -> 
C104: Sediment
C105: Bulk | D105: =HL_Sed -> 0 | E105: =D105/24 -> 0 | F105: =0.693/D105 ->  | G105: =D65*F105*'Inputs - Environment'!D23*'Inputs - Environment'!D29 ->  | H105: =I105*MolarMass/1000 ->  | I105: =D42*G105 ->  | J105: =100*I105/E$33 -> 
C107: Total | G107: =G94+G98+G103+G105 ->  | H107: =SUM(H94,H98,H103,H105) ->  | I107: =SUM(I94,I98,I103,I105) ->  | J107: =SUM(J94,J98,J103,J105) -> 
C109: Intermedia Transport
D111: Half Times | F111: Equiv. Flows | G111: D Value | H111: Transport Rate
D112: hours | E112: days | F112: m³/h | G112: mol/Pa*h | H112: kg/h | I112: mol/h
C113: Air to water | D113: =IF(F113<=0,0,LN(2)*Area_Air*Depth_Air/F113) ->  | E113: =D113/24 ->  | F113: =IF(D51<=0,0,G113/D51) ->  | G113: =D127+D134+D129 ->  | H113: =I113*MolarMass/1000 ->  | I113: =G113*D39 -> 
C114: Air to soil | D114: =IF(F114<=0,0,LN(2)*Area_Air*Depth_Air/F114) ->  | E114: =D114/24 ->  | F114: =IF(D51<=0,0,G114/D51) ->  | G114: =H131+D130+D138 ->  | I114: =G114*D39 -> 
C115: Water to air | D115: =IF(F115<=0,0,LN(2)*Area_water*'Inputs - Environment'!D27/F115) ->  | F115: =IF(D55<=0,0,G115/D55) ->  | G115: =D127 ->  | I115: =G115*D40 -> 
C116: Water to sediment | D116: =IF(F116<=0,0,LN(2)*Area_water*'Inputs - Environment'!D27/F116) ->  | F116: =IF(D55<=0,0,G116/D55) ->  | G116: =H133+H135 ->  | I116: =G116*D40 -> 
C117: Soil to air | D117: =IF(F117<=0,0,LN(2)*'Inputs - Environment'!D22*'Inputs - Environment'!D28/F117) ->  | F117: =IF(D60<=0,0,G117/D60) ->  | G117: =H131 ->  | I117: =G117*D41 -> 
C118: Soil to water | D118: =IF(F118<=0,0,LN(2)*'Inputs - Environment'!D22*'Inputs - Environment'!D29/F118) ->  | F118: =IF(D60<=0,0,G118/D60) ->  | G118: =H125+H126 ->  | I118: =G118*D41 -> 
C119: Sediment to water | D119: =IF(F119<=0,0,LN(2)*'Inputs - Environment'!D23*'Inputs - Environment'!D29/F119) ->  | F119: =IF(D65<=0,0,G119/D65) ->  | G119: =H133+H136 ->  | I119: =G119*D42 -> 
C121: Process D Values
C123: All D values are in units of mol/Pa*h
C125: Air-water diffusion (air-side) | D125: =Area_water*'Inputs - Environment'!G21*Results!D52 -> 770.5535152 | F125: Soil to water runoff (water) | H125: ='Inputs - Environment'!D22*'Inputs - Environment'!G31*Results!D56 -> 
C126: Air-water diffusion (water-side) | D126: =Area_water*'Inputs - Environment'!G22*Results!D56 ->  | F126: Soil to water runoff (solids) | H126: ='Inputs - Environment'!D22*'Inputs - Environment'!G32*Results!D63 -> 
C127: Air-water diffusion (total) | D127: =IF(OR(D125<=0,D126<=0),0,1/((1/D125)+(1/D126))) -> 
F128: Soil-air diffusion (air-phase) | H128: ='Inputs - Environment'!D22*'Inputs - Environment'!G25*Results!D52 -> 198.1423325
C129: Rain dissolution to water | D129: =Area_water*'Inputs - Environment'!G23*Results!D56 ->  | F129: Soil-air diffusion (water-phase) | H129: ='Inputs - Environment'!D22*'Inputs - Environment'!G26*Results!D56 -> 
C130: Rain dissolution to soil | D130: ='Inputs - Environment'!D22*'Inputs - Environment'!G23*Results!D56 ->  | F130: Soil-air diffusion (boundary layer) | H130: ='Inputs - Environment'!D22*'Inputs - Environment'!G27*Results!D52 -> 990.7116623
F131: Soil-air diffusion (total) | H131: =IF(OR(H128=0,H129=0,H130=0),0,1/((1/H128)+(1/(H129+H130)))) -> 
C132: Aerosol deposition to water (dry) | D132: =Area_water*Aers_Fraction*'Inputs - Environment'!G24*Results!D53 -> 
C133: Aerosol deposition to water (wet) | D133: =Area_water*Aers_Fraction*'Inputs - Environment'!G23*Results!D53*'Inputs - Environment'!G34 ->  | F133: Water-sediment diffusion | H133: =Area_water*'Inputs - Environment'!G28*Results!D56 -> 
C134: Aerosol deposition to water (total) | D134: =D132+D133 -> 
F135: Water to sediment deposition | H135: =Area_water*'Inputs - Environment'!G29*Results!D57 -> 
C136: Aerosol deposition to soil (dry) | D136: ='Inputs - Environment'!D22*Aers_Fraction*'Inputs - Environment'!G24*D53 ->  | F136: Sediment to water resuspension | H136: ='Inputs - Environment'!D23*'Inputs - Environment'!G30*Results!D67 -> 
C137: Aerosol deposition to soil (wet) | D137: ='Inputs - Environment'!D22*Aers_Fraction*'Inputs - Environment'!G23*Results!D53*'Inputs - Environment'!G34 -> 
C138: Aerosol deposition to soil (total) | D138: =D136+D137 -> 

Sheet Diagram
D2: Chemical Name: | F2: =ChemName -> 0
D4: Lake Name: | F4: =EnvName -> Hypothene
A6: Total Mass | B6: =Results!D27 ->  | C6: kg | G6: =Results!E21 ->  | J6: =Results!I51 ->  | K6: kg | L6: =Results!I74 -> 
B7: =Results!E17 ->  | C7: mol/h | J7: =Results!J51 ->  | K7: %
G8: =Results!E13 ->  | J8: =Results!F51*1000000000 ->  | K8: ng/m³
J9: =Results!D39 ->  | K9: Pa | M9: =Results!I94 -> 
B11: =Results!G33 ->  | C11: h
B12: =Results!G32 ->  | C12: h
B13: =Results!G31 ->  | C13: h | H13: =Results!I117 -> 
K14: =Results!I113 -> 
A16: All transfer rates in | C16: mol/h | E16: =Results!E15 ->  | M16: =Results!I115 -> 
I17: =Results!I114 -> 
G20: =Results!I60 ->  | H20: kg | O20: =Results!I78 -> 
G21: =Results!J60 ->  | H21: % | J21: =Results!I118 -> 
G22: =Results!G63*1000 ->  | H22: ng/g solids | L22: =Results!I55 ->  | M22: kg
G23: =Results!D41 ->  | H23: Pa | L23: =Results!J55 ->  | M23: %
J24: =Results!E22 ->  | L24: =Results!F55*1000000 ->  | M24: ng/L
E25: =Results!I103 ->  | L25: =Results!D40 ->  | M25: Pa | P25: =Results!I98 -> 
J29: =Results!E14 -> 
L31: =Results!I119 ->  | N31: =Results!I116 -> 
B36: - | N36: =Results!I85 -> 
H38: =Results!E16 ->  | K38: =Results!I65 ->  | L38: kg
K39: =Results!J65 ->  | L39: %
K40: =Results!G67*1000 ->  | L40: ng/g solids
K41: =Results!D42 ->  | L41: Pa | O41: =Results!I105 -> 

Sheet Charts

Sheet Chemical Database
K1: =IF(OR(B1="",G1=""),"",G1*C1/I1) -> 
M7: Half-Lives | AA7: Partition Ratios
A8: CAS | B8: Chemical Name | C8: Molar Mass | D8: Data Temp. | E8: Melting Point | G8: Vapor pressure | I8: Solubility in Water | K8: Henry's Law Constant | M8: In Air | O8: In Aerosol | Q8: In Water | S8: In Susp. Particles | U8: In Fish | W8: In Soil | Y8: In Sediment | AA8: logKOW | AC8: KOC | AD8: Air-Water (KAW)/Water-Air | AF8: Aerosol-Water/Aerosol-Air | AH8: Soil-Water/Soil-Air | AJ8: Suspended Particles-Water/Suspended Particles-Air | AL8: Sediment-Water/Sediment-Air | AN8: Fish-Water/Fish-Air | AP8: NOTES
C9: (g/mol) | D9: °C | E9: °C | F9: Ref. | G9: (Pa) | H9: Ref. | I9: (g/m³ or mg/L) | J9: Ref. | K9: (Pa·m³/mol) | L9: Ref. | M9: (hours) | N9: Ref. | O9: (hours) | P9: Ref. | Q9: (hours) | R9: Ref. | S9: (hours) | T9: Ref. | U9: (hours) | V9: Ref. | W9: (hours) | X9: Ref. | Y9: (hours) | Z9: Ref. | AB9: Ref. | AC9: unitless | AD9: unitless (m³/m³) | AE9: Ref. | AF9: unitless | AG9: Ref. | AH9: L/kg | AI9: Ref. | AJ9: L/kg | AK9: Ref. | AL9: L/kg | AM9: Ref. | AN9: L/kg | AO9: Ref.
B10: Specimen Type 1 | C10: 250 | D10: 25 | E10: 275 | G10: 0.02 | I10: 30 | K10: =IF(OR(B10="",G10="",B10="-",G10="-"),"",G10*C10/I10) -> 0.1666666667 | M10: 17 | O10: 17 | Q10: 55 | S10: 55 | U10: 55 | W10: 170 | Y10: 170 | AA10: 2.5 | AC10: =IF(OR(AA10="",AA10="-"),"",0.35*10^AA10) -> 110.6797181 | AP10: Example values for type 1 chemicals such as benzene
B11: Specimen Type 2 | C11: 252.3 | D11: 25 | E11: - | G11: - | I11: - | K11: =IF(OR(B11="",G11="",B11="-",G11="-"),"",G11*C11/I11) ->  | M11: 17 | O11: 170 | Q11: 55 | S11: 170 | U11: 170 | W11: 170 | Y11: 170 | AC11: =IF(OR(AA11="",AA11="-"),"",0.35*10^AA11) ->  | AD11: 6.72e-05 | AF11: 67.9 | AH11: 3.89 | AJ11: 7.78 | AL11: 7.78 | AN11: 15.2 | AP11: Example values for type 2 chemical such as alkylbenzene sulfonates
B12: Specimen Type 3 | C12: 131.4 | D12: 25 | E12: - | G12: - | I12: - | M12: 17 | O12: 17 | Q12: 55 | S12: 55 | U12: 55 | W12: 170 | Y12: 170 | AD12: 15000 | AF12: 1010000 | AH12: 58000 | AJ12: 116000 | AL12: 116000 | AN12: 226000 | AP12: Example values for type 3 chemicals such as mineral oil
B13: Benzene | C13: 78 | D13: 25 | E13: 5.35 | G13: 12700 | I13: 1780 | K13: 556.5168539 | M13: 315.58 | N13: EAS-E Suite Database | O13: 315.58 | P13: Assumption made that 1/2 life in air can be used | Q13: 331.1 | R13: EAS-E Suite Database | S13: 2979.92 | T13: Assumption made that 1/2 life in sediment can be used | U13: 9.2 | V13: EAS-E Suite Database | W13: 662.205 | X13: EAS-E Suite Database | Y13: 2979.92 | Z13: EAS-E Suite Database | AA13: 2.13 | AC13: 47.21370089
B14: Toluene | C14: 92.13 | D14: 25 | E14: -95 | G14: 3800 | I14: 515 | K14: 679.7941748 | M14: 64.93 | N14: EAS-E Suite Database | O14: 64.93 | P14: Assumption made that 1/2 life in air can be used | Q14: 238.865 | R14: EAS-E Suite Database | S14: 2149.75 | T14: Assumption made that 1/2 life in sediment can be used | U14: 15.42 | V14: EAS-E Suite Database | W14: 477.725 | X14: EAS-E Suite Database | Y14: 2149.75 | Z14: EAS-E Suite Database | AA14: 2.69 | AC14: 171.4225868
B15: Chlorobenzene | C15: 112.6 | D15: 25 | E15: -45.6 | G15: 1580 | I15: 484 | K15: 367.5785124 | M15: 500.11 | N15: EAS-E Suite Database | O15: 500.11 | P15: Assumption made that 1/2 life in air can be used | Q15: 602.2 | R15: EAS-E Suite Database | S15: 5419.8 | T15: Assumption made that 1/2 life in sediment can be used | U15: 2.3 | V15: EAS-E Suite Database | W15: 1204.4 | X15: EAS-E Suite Database | Y15: 5419.8 | Z15: EAS-E Suite Database | AA15: 2.8 | AC15: 220.8350706
B16: 1,4-Dichlorobenzene | C16: 147.01 | D16: 25 | E16: 53.1 | G16: 130 | I16: 83 | K16: 230.2566265 | M16: 620.3 | N16: EAS-E Suite Database | O16: 620.3 | P16: Assumption made that 1/2 life in air can be used | Q16: 1239 | R16: EAS-E Suite Database | S16: 12390 | T16: Assumption made that 1/2 life in sediment can be used | U16: 299.25 | V16: EAS-E Suite Database | W16: 2477.9 | X16: EAS-E Suite Database | Y16: 12390 | Z16: EAS-E Suite Database | AA16: 3.4 | AC16: 879.160251
B17: Hexachlorobenzene | C17: 284.8 | D17: 25 | E17: 230 | G17: 0.0023 | I17: 0.005 | K17: 131.008 | M17: 7351.7 | N17: EAS-E Suite Database | O17: 7351.7 | P17: Assumption made that 1/2 life in air can be used | Q17: 14017 | R17: EAS-E Suite Database | S17: 140170 | T17: Assumption made that 1/2 life in sediment can be used | U17: 6542.95 | V17: EAS-E Suite Database | W17: 28033 | X17: EAS-E Suite Database | Y17: 140170 | Z17: EAS-E Suite Database | AA17: 5.5 | AC17: 110679.7181
B18: N-hexane | C18: 86.17 | D18: 25 | E18: -95 | G18: 20200 | I18: 9.5 | K18: 183224.6316 | M18: 74.05 | N18: EAS-E Suite Database | O18: 74.05 | P18: Assumption made that 1/2 life in air can be used | Q18: 152.8 | R18: EAS-E Suite Database | S18: 1375.2 | T18: Assumption made that 1/2 life in sediment can be used | U18: 8.78 | V18: EAS-E Suite Database | W18: 305.595 | X18: EAS-E Suite Database | Y18: 1375.2 | Z18: EAS-E Suite Database | AA18: 4.11 | AC18: 4508.873431
B19: Tricholoroethylene | C19: 131.39 | D19: 25 | E19: -73 | G19: 9900 | I19: 1100 | K19: 1182.51 | M19: 191.85 | N19: EAS-E Suite Database | O19: 191.85 | P19: Assumption made that 1/2 life in air can be used | Q19: 1028.6 | R19: EAS-E Suite Database | S19: 9257.2 | T19: Assumption made that 1/2 life in sediment can be used | U19: 9.35 | V19: EAS-E Suite Database | W19: 2057.2 | X19: EAS-E Suite Database | Y19: 9257.2 | Z19: EAS-E Suite Database | AA19: 2.53 | AC19: 118.5954546
B20: 1-Pentanol | C20: 88.149 | D20: 25 | E20: -78.2 | G20: 300 | I20: 22000 | K20: 1.202031818 | M20: 34.69 | N20: EAS-E Suite Database | O20: 34.69 | P20: Assumption made that 1/2 life in air can be used | Q20: 126.5 | R20: EAS-E Suite Database | S20: 1138.5 | T20: Assumption made that 1/2 life in sediment can be used | U20: 0.41 | V20: EAS-E Suite Database | W20: 253 | X20: EAS-E Suite Database | Y20: 1138.5 | Z20: EAS-E Suite Database | AA20: 1.5 | AC20: 11.06797181
B21: Aniline | C21: 93.12 | D21: 25 | E21: -6.3 | G21: 65.19 | I21: 36070 | K21: 0.1682975548 | M21: 3.42 | N21: EAS-E Suite Database | O21: 3.42 | P21: Assumption made that 1/2 life in air can be used | Q21: 573.71 | R21: EAS-E Suite Database | S21: 5163.4 | T21: Assumption made that 1/2 life in sediment can be used | U21: 3.99 | V21: EAS-E Suite Database | W21: 1147.4 | X21: EAS-E Suite Database | Y21: 5163.4 | Z21: EAS-E Suite Database | AA21: 0.9 | AC21: 2.780148822
B22: Benzo[a]pyrene | C22: 252.13 | D22: 25 | E22: 175 | G22: 7e-07 | I22: 0.0038 | K22: 0.046445 | M22: 7.7 | N22: EAS-E Suite Database | O22: 7.7 | P22: Assumption made that 1/2 life in air can be used | Q22: 7058.9 | R22: EAS-E Suite Database | S22: 63532 | T22: Assumption made that 1/2 life in sediment can be used | U22: 26.77 | V22: EAS-E Suite Database | W22: 14118.3 | X22: EAS-E Suite Database | Y22: 63532 | Z22: EAS-E Suite Database | AA22: 6.04 | AC22: 383767.3687
B23: Naphthalene | C23: 128.19 | D23: 25 | E23: 80.5 | G23: 10.4 | I23: 31 | K23: 43.00567742 | M23: 8.63 | N23: EAS-E Suite Database | O23: 8.63 | P23: Assumption made that 1/2 life in air can be used | Q23: 414.99 | R23: EAS-E Suite Database | S23: 1267.7 | T23: Assumption made that 1/2 life in sediment can be used | U23: 61.81 | V23: EAS-E Suite Database | W23: 829.99 | X23: EAS-E Suite Database | Y23: 1267.7 | Z23: EAS-E Suite Database | AA23: 3.37 | AC23: 820.4800854
B24: Phenanthrene | C24: 178.2 | D24: 25 | E24: 101 | G24: 0.02 | I24: 1.1 | K24: 3.24 | M24: 7.32 | N24: EAS-E Suite Database | O24: 7.32 | P24: Assumption made that 1/2 life in air can be used | Q24: 618.245 | R24: EAS-E Suite Database | S24: 3413.15 | T24: Assumption made that 1/2 life in sediment can be used | U24: 119.13 | V24: EAS-E Suite Database | W24: 1236.48 | X24: EAS-E Suite Database | Y24: 3413.15 | Z24: EAS-E Suite Database | AA24: 4.57 | AC24: 13003.73302
B25: Pyrene | C25: 202.3 | D25: 25 | E25: 156 | G25: 0.0006 | I25: 0.132 | K25: 0.9195454545 | M25: 3.97 | N25: EAS-E Suite Database | O25: 3.97 | P25: Assumption made that 1/2 life in air can be used | Q25: 4988.75 | R25: EAS-E Suite Database | S25: 64615 | T25: Assumption made that 1/2 life in sediment can be used | U25: 50.01 | V25: EAS-E Suite Database | W25: 9977.4 | X25: EAS-E Suite Database | Y25: 64615 | Z25: EAS-E Suite Database | AA25: 5.18 | AC25: 52974.6437
B26: PCB-15 | C26: 223.1 | D26: 25 | E26: 149 | G26: 0.0048 | I26: 0.06 | K26: 17.848 | M26: 192.54 | N26: EAS-E Suite Database | O26: 192.54 | P26: Assumption made that 1/2 life in air can be used | Q26: 1758.4 | R26: EAS-E Suite Database | S26: 15826 | T26: Assumption made that 1/2 life in sediment can be used | U26: 567.66 | V26: EAS-E Suite Database | W26: 3516.9 | X26: EAS-E Suite Database | Y26: 15826 | Z26: EAS-E Suite Database | AA26: 5.3 | AC26: 69834.18102
B27: PCB-52 | C27: 292 | D27: 25 | E27: 87 | G27: 0.0049 | I27: 0.03 | K27: 47.69333333 | M27: 527.4 | N27: EAS-E Suite Database | O27: 527.4 | P27: Assumption made that 1/2 life in air can be used | Q27: 5914.2 | R27: EAS-E Suite Database | S27: 53227 | T27: Assumption made that 1/2 life in sediment can be used | U27: 1853.53 | V27: EAS-E Suite Database | W27: 11828 | X27: EAS-E Suite Database | Y27: 53227 | Z27: EAS-E Suite Database | AA27: 6.1 | AC27: 440623.8941
B28: PCB-209 | C28: 498.7 | D28: 25 | E28: 305.9 | G28: 5.02e-08 | I28: 1e-05 | K28: 2.503474 | M28: 21193 | N28: EAS-E Suite Database | O28: 21193 | P28: Assumption made that 1/2 life in air can be used | Q28: 81709 | R28: EAS-E Suite Database | S28: 735380 | T28: Assumption made that 1/2 life in sediment can be used | U28: 17534.52 | V28: EAS-E Suite Database | W28: 163420 | X28: EAS-E Suite Database | Y28: 735380 | Z28: EAS-E Suite Database | AA28: 8.26 | AC28: 63689530.05
B29: Dibenzo-p-dioxin | C29: 184 | D29: 25 | E29: 123 | G29: 0.055 | I29: 0.865 | K29: 11.69942197 | M29: 32.09 | N29: EAS-E Suite Database | O29: 32.09 | P29: Assumption made that 1/2 life in air can be used | Q29: 390.33 | R29: EAS-E Suite Database | S29: 3513 | T29: Assumption made that 1/2 life in sediment can be used | U29: 32.32 | V29: EAS-E Suite Database | W29: 780.67 | X29: EAS-E Suite Database | Y29: 3513 | Z29: EAS-E Suite Database | AA29: 4.3 | AC29: 6983.418102
B30: 4-chlorophenol | C30: 128.56 | D30: 25 | E30: 43 | G30: 20 | I30: 27000 | K30: 0.09522962963 | M30: 39.01 | N30: EAS-E Suite Database | O30: 39.01 | P30: Assumption made that 1/2 life in air can be used | Q30: 597.61 | R30: EAS-E Suite Database | S30: 5378.5 | T30: Assumption made that 1/2 life in sediment can be used | U30: 9.25 | V30: EAS-E Suite Database | W30: 1195.2 | X30: EAS-E Suite Database | Y30: 5378.5 | Z30: EAS-E Suite Database | AA30: 2.4 | AC30: 87.9160251
B31: Pentachlorophenol | C31: 266.34 | D31: 25 | E31: 190 | G31: 0.00415 | I31: 14 | K31: 0.07895078571 | M31: 597.91 | N31: EAS-E Suite Database | O31: 597.91 | P31: Assumption made that 1/2 life in air can be used | Q31: 6759.9 | R31: EAS-E Suite Database | S31: 67599 | T31: Assumption made that 1/2 life in sediment can be used | U31: 15 | V31: EAS-E Suite Database | W31: 13520 | X31: EAS-E Suite Database | Y31: 67599 | Z31: EAS-E Suite Database | AA31: 5.05 | AC31: 39270.6459
B32: DEHP | C32: 390.54 | D32: 25 | E32: -50 | G32: 1.33e-05 | I32: 0.285 | K32: 0.0182252 | M32: 9.41 | N32: EAS-E Suite Database | O32: 9.41 | P32: Assumption made that 1/2 life in air can be used | Q32: 115.11 | R32: EAS-E Suite Database | S32: 1151.1 | T32: Assumption made that 1/2 life in sediment can be used | U32: 66.23 | V32: EAS-E Suite Database | W32: 230.21 | X32: EAS-E Suite Database | Y32: 1151.1 | Z32: EAS-E Suite Database | AA32: 5.11 | AC32: 45088.73431
B33: p,p'-DDT | C33: 354.5 | D33: 25 | E33: 108.5 | G33: 2e-05 | I33: 0.0055 | K33: 1.289090909 | M33: 112.1 | N33: EAS-E Suite Database | O33: 112.1 | P33: Assumption made that 1/2 life in air can be used | Q33: 14472 | R33: EAS-E Suite Database | S33: 130250 | T33: Assumption made that 1/2 life in sediment can be used | U33: 2030.97 | V33: EAS-E Suite Database | W33: 28945 | X33: EAS-E Suite Database | Y33: 130250 | Z33: EAS-E Suite Database | AA33: 6.19 | AC33: 542085.8166
B34: Lindane | C34: 290.85 | D34: 25 | E34: 112 | G34: 0.00374 | I34: 7.3 | K34: 0.1490108219 | M34: 1044.7 | N34: EAS-E Suite Database | O34: 1044.7 | P34: Assumption made that 1/2 life in air can be used | Q34: 4392.9 | R34: EAS-E Suite Database | S34: 43929 | T34: Assumption made that 1/2 life in sediment can be used | U34: 948.5 | V34: EAS-E Suite Database | W34: 8785.8 | X34: EAS-E Suite Database | Y34: 43929 | Z34: EAS-E Suite Database | AA34: 3.7 | AC34: 1754.155318
B35: Atrazine | C35: 215.68 | D35: 25 | E35: 174 | G35: 4e-05 | I35: 30 | K35: 0.0002875733333 | M35: 9.33 | N35: EAS-E Suite Database | O35: 9.33 | P35: Assumption made that 1/2 life in air can be used | Q35: 2505.2 | R35: EAS-E Suite Database | S35: 25052 | T35: Assumption made that 1/2 life in sediment can be used | U35: 2.14 | V35: EAS-E Suite Database | W35: 5010.4 | X35: EAS-E Suite Database | Y35: 25052 | Z35: EAS-E Suite Database | AA35: 2.75 | AC35: 196.8194638
B36: LAS | C36: 348 | D36: 25 | G36: - | M36: 24 | O36: 24 | Q36: 24 | S36: 24 | U36: 24 | W36: 480 | Y36: 96 | AD36: 0 | AF36: 100 | AH36: 20 | AJ36: 570 | AL36: 570 | AN36: 250
B37: Hypothene | C37: 200 | D37: 27.5 | E37: 0 | G37: 1 | I37: 20 | K37: 10 | M37: 693 | O37: 100000000000 | Q37: 693 | S37: 100000000000 | U37: 100000000000 | W37: 69.3 | Y37: 6930 | AA37: 4 | AC37: 3500 | AP37: Hypothetical chemical
K71: =IF(OR(B71="",G71="",B71="-",G71="-"),"",G71*C71/I71) -> 
AC75: =IF(OR(AA75="",AA75="-"),"",0.35*10^AA75) -> 
K135: =IF(OR(B135="",G135="",B135="-",G135="-"),"",G135*C135/I135) -> 
AC139: =IF(OR(AA139="",AA139="-"),"",0.35*10^AA139) -> 
K199: =IF(OR(B199="",G199="",B199="-",G199="-"),"",G199*C199/I199) -> 
AC203: =IF(OR(AA203="",AA203="-"),"",0.35*10^AA203) -> 
K263: =IF(OR(B263="",G263="",B263="-",G263="-"),"",G263*C263/I263) -> 
AC267: =IF(OR(AA267="",AA267="-"),"",0.35*10^AA267) -> 
K327: =IF(OR(B327="",G327="",B327="-",G327="-"),"",G327*C327/I327) -> 
AC331: =IF(OR(AA331="",AA331="-"),"",0.35*10^AA331) -> 
K391: =IF(OR(B391="",G391="",B391="-",G391="-"),"",G391*C391/I391) -> 
K455: =IF(OR(B455="",G455="",B455="-",G455="-"),"",G455*C455/I455) -> 
K519: =IF(OR(B519="",G519="",B519="-",G519="-"),"",G519*C519/I519) -> 
K583: =IF(OR(B583="",G583="",B583="-",G583="-"),"",G583*C583/I583) -> 
K647: =IF(OR(B647="",G647="",B647="-",G647="-"),"",G647*C647/I647) -> 
K711: =IF(OR(B711="",G711="",B711="-",G711="-"),"",G711*C711/I711) -> 
K775: =IF(OR(B775="",G775="",B775="-",G775="-"),"",G775*C775/I775) -> 
K839: =IF(OR(B839="",G839="",B839="-",G839="-"),"",G839*C839/I839) -> 
K903: =IF(OR(B903="",G903="",B903="-",G903="-"),"",G903*C903/I903) -> 
K967: =IF(OR(B967="",G967="",B967="-",G967="-"),"",G967*C967/I967) -> 
K1031: =IF(OR(B1031="",G1031="",B1031="-",G1031="-"),"",G1031*C1031/I1031) -> 
K1095: =IF(OR(B1095="",G1095="",B1095="-",G1095="-"),"",G1095*C1095/I1095) -> 
K1159: =IF(OR(B1159="",G1159="",B1159="-",G1159="-"),"",G1159*C1159/I1159) -> 
K1223: =IF(OR(B1223="",G1223="",B1223="-",G1223="-"),"",G1223*C1223/I1223) -> 
K1287: =IF(OR(B1287="",G1287="",B1287="-",G1287="-"),"",G1287*C1287/I1287) -> 
K1351: =IF(OR(B1351="",G1351="",B1351="-",G1351="-"),"",G1351*C1351/I1351) -> 
K1415: =IF(OR(B1415="",G1415="",B1415="-",G1415="-"),"",G1415*C1415/I1415) -> 
K1479: =IF(OR(B1479="",G1479="",B1479="-",G1479="-"),"",G1479*C1479/I1479) -> 
K1543: =IF(OR(B1543="",G1543="",B1543="-",G1543="-"),"",G1543*C1543/I1543) -> 
K1607: =IF(OR(B1607="",G1607="",B1607="-",G1607="-"),"",G1607*C1607/I1607) -> 
K1671: =IF(OR(B1671="",G1671="",B1671="-",G1671="-"),"",G1671*C1671/I1671) -> 
K1735: =IF(OR(B1735="",G1735="",B1735="-",G1735="-"),"",G1735*C1735/I1735) -> 
K1799: =IF(OR(B1799="",G1799="",B1799="-",G1799="-"),"",G1799*C1799/I1799) -> 
K1863: =IF(OR(B1863="",G1863="",B1863="-",G1863="-"),"",G1863*C1863/I1863) -> 
K1927: =IF(OR(B1927="",G1927="",B1927="-",G1927="-"),"",G1927*C1927/I1927) -> 
K1991: =IF(OR(B1991="",G1991="",B1991="-",G1991="-"),"",G1991*C1991/I1991) -> 
... 44 more rows

Sheet Environment Database
B7: Volume Fractions | J7: Area (m2) | N7: Depth (m) | R7: Advective Flow Residence Times | U7: Densities for subcompartments (kg/m³) | AE7: Organic Carbon (g/g) | AI7: Transport Velocities (m/h) | AU7: Scavenging Ratio
A8: Name | B8: Aerosol in Air | C8: Susp. Particles in Water | D8: Fish in Water | E8: Soil in Air | F8: Water in Soil | G8: Solids ins Soil | H8: Water in Sediment | I8: Solids in Sediment | J8: Air | K8: Water | L8: Soil | M8: Sediment | N8: Air | O8: Water | P8: Soil | Q8: Sediment | R8: Air | S8: Water | T8: Sediment (burial) | U8: Air in Air | V8: Aerosol in Air | W8: Water in Water | X8: Susp. Particles in Water | Y8: Fish in Water | Z8: Air in Soil | AA8: Water in Soil | AB8: Solid in Soil | AC8: Water in Sediment | AD8: Solid in Sediment | AE8: Susp. Particles | AF8: Fish Lipid | AG8: Soil | AH8: Sediment | AI8: Air side air-water MTC | AJ8: Water side air-water MTC | AK8: Rain rate | AL8: Aerosol dry deposition | AM8: Soil-air phase diffusion MTC | AN8: Soil-water phase diffusion MTC | AO8: Soil-air boundary layer MTC | AP8: Sediment-water diffusion MTC | AQ8: Sediment deposition | AR8: Sediment resuspension | AS8: Soil-water runoff rate | AT8: Soil-solids runoff rate | AU8: (unitless) | AV8: NOTES
A10: Default | B10: =0.00000000002 -> 2e-11 | C10: =0.000005 -> 5e-06 | D10: =0.000001 -> 1e-06 | E10: 0.2 | F10: 0.3 | G10: 0.5 | H10: 0.8 | I10: 0.2 | J10: 298000000000 | K10: 12700000000 | L10: =J10-K10 -> 285300000000 | M10: =K10 -> 12700000000 | N10: 2000 | O10: =IF(K10=0,0,20) -> 20 | P10: 0.1 | Q10: 0.01 | R10: 40 | S10: 1000 | T10: 50000 | U10: 1.185 | V10: 2400 | W10: 1000 | X10: 2400 | Y10: 1000 | Z10: 1.185 | AA10: 1000 | AB10: 2400 | AC10: 1000 | AD10: 2400 | AE10: 0.2 | AF10: 0.048 | AG10: 0.02 | AH10: 0.04 | AI10: 5 | AJ10: 0.05 | AK10: 0.001 | AL10: 10 | AM10: 0.02 | AN10: 1e-05 | AO10: 5 | AP10: 0.0001 | AQ10: 5e-07 | AR10: 2e-07 | AS10: 5e-05 | AT10: 1e-08 | AU10: 200000
A11: Hypothene | B11: 0 | C11: 0 | D11: 0 | E11: 0 | F11: 0.377 | G11: 0.623 | H11: 0.377 | I11: 0.623 | J11: 3000000 | K11: 350000 | L11: 450000 | M11: 350000 | N11: 2000 | O11: 20 | P11: 0.1 | Q11: 0.06 | R11: 600 | S11: 7000 | T11: 100000000000 | U11: 1.175556 | V11: 2400 | W11: 1000 | X11: 1000 | Y11: 1000 | Z11: 1.175556 | AA11: 1000 | AB11: 2400 | AC11: 1000 | AD11: 2400 | AE11: 0.02 | AF11: 0.05 | AG11: 0.02 | AH11: 0.04 | AI11: 5 | AJ11: 0.05 | AK11: 0 | AL11: 0 | AM11: 1 | AN11: 1e-05 | AO11: 5 | AP11: 0.0001 | AQ11: 0 | AR11: 0 | AS11: 0 | AT11: 0 | AU11: 200000
